Cogmind - Beta 12 @@@ ROGUE MODE // 2023.12.03 @ 00:11:29 Player: veb_robotron Result: Destroyed by H-66 Slayer with Gauss Rifle Performance ------------- Evolutions (5) 2500 Regions Visited (12) 2400 Robots Destroyed (95) 475 Value Destroyed (3525) 3525 Prototype IDs (9) 180 Alien Tech Used (0) 0 Bonus (391) 391 TOTAL SCORE: 9471 Bonus ------- High Alert Combat Kills 356 Follower Combat Kills 35 Cogmind --------- Core Integrity 0/1000 Matter 254/400 Energy 150/150 System Corruption 7% Temperature Warm (106) Movement Immobile (Siege) Location -5/Cetus Parts ------- > --- POWER (1) -------- Light Angular Momentum Engine > --- PROPULSION (5) --- Centrium Heavy Treads Centrium Heavy Treads > --- UTILITY (8) ------ Advanced Heat Sink Medium Matter Pod Enhanced Optical Array Improved Sensor Array Improved Signal Interpreter Improved Target Analyzer Centrium Medium Armor Plating Centrium Medium Armor Plating > --- WEAPON (3) ------- KE Penetrator Advanced KE Penetrator Advanced KE Penetrator > --- INVENTORY (5) ---- Quantum Reactor Quantum Reactor KE Penetrator KE Penetrator Peak State ------------ > --- POWER ------------ Light Angular Momentum Engine > --- PROPULSION ------- Medium Treads Centrium Heavy Treads Centrium Heavy Treads > --- UTILITY ---------- Medium Matter Pod Enhanced Optical Array Improved Sensor Array Improved Signal Interpreter Improved Target Analyzer Centrium Medium Armor Plating Centrium Medium Armor Plating Field Recycling Unit > --- WEAPON ----------- KE Penetrator Advanced KE Penetrator Advanced KE Penetrator > --- INVENTORY -------- Quantum Reactor Quantum Reactor Advanced Heat Sink KE Penetrator KE Penetrator [Rating: 107] Favorites ----------- Power Micro Nuclear Core Engine Ion Engine Power Core Micro Nuclear Core Propulsion Aluminum Leg Treads Medium Treads Leg Aluminum Leg Wheel Compact Wheel Hover Unit Gravmag Array Flight Unit Improved VTOL Module Utility Melee Analysis Suite Device Improved Sensor Array Storage Small Storage Unit Processor Melee Analysis Suite Hackware System Shield Protection Core Shielding Weapon Katana Energy Gun Medium Laser Energy Cannon Particle Cannon Ballistic Gun KE Penetrator Special Weapon Plasma Cutter Impact Weapon Flail Slashing Weapon Katana Special Melee Weapon Dirty Datajack Build | -11 -10 -9 -9 -8 -8 -7 -6 -6 -6 -5 -5 -5 ------- Run | Jun Mat Mat Min Mat Sto Fac Fac Low Low Fac Ext Cet Slots Evolved 10 | . . 2 . 2 . 2 2 . . 2 . . Power . | . . . . . . . . . . . . . Propulsion 3 | . . 1 . 1 . 1 . . . . . . Utility 6 | . . 1 . 1 . 1 1 . . 2 . . Weapon 1 | . . . . . . . 1 . . . . . Parts Attached 167 | 6 . 26 1 13 45 9 7 1 1 23 21 14 Power 17 | 1 . 1 . 2 7 1 . . . 3 1 1 Engine 13 | 1 . 1 . 2 7 . . . . 1 . 1 Core 4 | . . . . . . 1 . . . 2 1 . Reactor . | . . . . . . . . . . . . . Propulsion 58 | 2 . 9 . 7 18 2 3 1 . 5 8 3 Treads 5 | . . . . . . . . . . . 3 2 Leg 24 | 2 . 6 . 1 11 1 2 . . 1 . . Wheel 4 | . . 1 . . . . . . . . 3 . Hover 10 | . . . . . . 1 1 1 . 4 2 1 Flight 15 | . . 2 . 6 7 . . . . . . . Utility 53 | 1 . 8 . 3 16 4 3 . . 8 5 5 Device 21 | . . 3 . 1 8 2 . . . 3 2 2 Storage 2 | 1 . . . . . . . . . . 1 . Processor 18 | . . 4 . 2 2 1 3 . . 4 1 1 Hackware 1 | . . . . . . . . . . 1 . . Protection 11 | . . 1 . . 6 1 . . . . 1 2 Artifact . | . . . . . . . . . . . . . Weapon 39 | 2 . 8 1 1 4 2 1 . 1 7 7 5 Energy Gun 5 | . . 2 . . . . . . . 3 . . Energy Cannon 1 | . . 1 . . . . . . . . . . Ballistic Gun 11 | 2 . . . . 1 . . . . . 3 5 Ballistic Cannon . | . . . . . . . . . . . . . Launcher . | . . . . . . . . . . . . . Special Weapon 3 | . . 3 . . . . . . . . . . Impact Weapon 3 | . . 2 1 . . . . . . . . . Slashing Weapon 14 | . . . . 1 3 2 1 . . 4 3 . Piercing Weapon . | . . . . . . . . . . . . . Special Melee Weapon 2 | . . . . . . . . . 1 . 1 . Unidentified Prototypes 7 | . . . . 1 1 . . . . 2 . 3 Corrupted Parts 1 | . . 1 . . . . . . . . . . System Corruption 2 | . . 2 . . . . . . . . . . Parts Lost 69 | . . 14 1 1 14 2 . 1 1 15 9 11 Power 8 | . . 2 . . 3 . . . . 1 1 1 Propulsion 30 | . . 7 . . 6 2 . 1 . 3 5 6 Utility 19 | . . 3 . 1 3 . . . 1 7 1 3 Weapon 12 | . . 2 1 . 2 . . . . 4 2 1 Highest Loss Streak 9 | . . 3 1 1 5 2 . 1 1 5 9 9 To Critical Strikes 1 | . . . . . . . . . . . . 1 Average Slot Usage (%) 87 | . 85 84 88 95 94 94 92 86 85 78 68 84 Engine 3 | . 14 3 . 5 7 . . . . 1 . 4 Core 2 | . . . . . . 6 6 6 6 3 2 . Treads 1 | . . . . . . . . . . . 6 14 Leg 13 | . 28 28 11 9 12 15 13 6 6 5 . . Hover 4 | . . . . . . 4 10 12 13 12 5 1 Flight 7 | . . . 22 27 23 11 1 . . . . . Device 8 | . . 13 . 5 7 7 13 13 12 5 1 10 Storage 3 | . 14 10 . . . . . . . . 1 5 Processor 18 | . . 4 33 30 18 23 25 26 26 29 25 20 Protection 2 | . . 2 . . 7 6 . . . . 2 6 Ballistic Gun 3 | . 28 . . . 2 . . . . . 5 16 Impact Weapon 4 | . . 11 22 12 2 . . . . . . . Slashing Weapon 7 | . . . . 5 10 15 20 20 14 5 5 . Naked Turns . | . . . . . . . . . . . . . Heaviest Build 51 | 13 13 18 4 14 17 13 15 15 15 21 47 51 Greatest Support 188 | 20 20 30 10 15 48 20 29 40 40 45 93 188 Greatest Overweight (x) 4 | . . 4 . . 1 1 . . . . 4 1 Average Overweight (x) . | . . . . . . . . . . . . . Largest Inventory Capacity 8 | 8 8 8 5 5 5 5 5 5 5 5 5 5 Average Capacity 5 | 7 8 7 5 5 5 5 5 5 5 5 5 5 Most Carried 8 | 2 8 8 5 5 5 5 5 5 5 5 5 5 Average Carried 4 | . 5 6 4 4 4 4 4 4 5 3 4 4 Final Capacity 8 | 8 8 5 5 5 5 5 5 5 5 5 5 5 Final Carried 8 | 2 8 5 5 5 3 5 5 5 5 5 5 4 Class Distribution -------------------- 54% | Mutant 29% | Scavenger-Mutant 5% | Scavenger-Skirmisher 5% | Scavenger-Gunner 4% | Scout Dominant Class ---------------- Mutant | -10/Materials Scavenger-Mutant | -9/Materials Mutant | -9/Mines Mutant | -8/Materials Mutant | -8/Storage Scavenger-Mutant | -7/Factory Scavenger-Mutant | -6/Factory Mutant | -6/Lower Caves Mutant | -6/Lower Caves Mutant | -5/Factory Mutant | -5/Extension Scavenger-Skirmisher | -5/Cetus Resources | -11 -10 -9 -9 -8 -8 -7 -6 -6 -6 -5 -5 -5 ----------- Run | Jun Mat Mat Min Mat Sto Fac Fac Low Low Fac Ext Cet Matter Collected 2193 | 192 107 234 11 115 380 100 43 62 . 159 366 424 Remotely . | . . . . . . . . . . . . . Salvage Created 4189 | . 133 505 92 130 1470 113 43 84 . 366 472 781 Parts 237 | . 15 20 5 13 88 8 2 2 . 21 18 45 Haulers Intercepted 6 | . . 1 . 1 2 . . . . . 2 . Recyclers Shooed . | . . . . . . . . . . . . . Parts Field Recycled 15 | . . . . . . . . . . . . 15 Retrieved Matter 69 | . . . . . . . . . . . . 69 Parts Self-Destructed 2 | . . . . . . . . 2 . . . . Prevented . | . . . . . . . . . . . . . Kills | -11 -10 -9 -9 -8 -8 -7 -6 -6 -6 -5 -5 -5 ------- Run | Jun Mat Mat Min Mat Sto Fac Fac Low Low Fac Ext Cet Combat Hostiles Destroyed 77 | . 6 13 3 1 28 2 1 1 . 6 2 14 Melee 46 | . . 7 2 1 27 2 1 1 . 5 . . Guns 22 | . 6 . . . . . . . . . 2 14 Cannons 2 | . . 2 . . . . . . . . . . AOE 1 | . . . . . . . . . . 1 . . Classes Destroyed 11 | . 2 2 . 1 2 1 . . . . 2 1 Worker 6 | . . . . . 5 . . . . . 1 . Builder 1 | . . . . . . . . . . . 1 . Hauler 6 | . . 1 . 1 2 . . . . . 2 . Recycler 1 | . . . . . . . . . . . 1 . Carrier 1 | . . . . . . . . . . . . 1 Watcher 3 | . . . . 1 1 . . . . . . 1 Swarmer 20 | . 3 4 . . 6 . . . . . . 7 Grunt 27 | . 3 4 3 . 10 . . 1 . 3 . 3 Duelist 3 | . . . . . 2 . . . . 1 . . Sentry 18 | . . 5 . 1 10 1 . . . 1 . . Programmer 5 | . . . . . . 1 1 . . 1 2 . Cetus Guard 4 | . . . . . . . . . . . . 4 Best Kill Streak 10 | . 3 4 3 1 10 1 1 1 . 3 3 8 Combat Bots Only 10 | . 3 4 3 1 10 1 1 1 . 3 2 7 Max Kills in Single Turn 2 | . 1 1 1 1 1 1 1 1 . 1 2 2 Gunslinging 1 | . . . . . . . . . . . 1 . Exploded 1 | . . . . . . . . . . 1 . . Melee 1 | . . 1 1 1 1 1 1 1 . 1 . . Uniques/NPCs Destroyed . | . . . . . . . . . . . . . Combat | -11 -10 -9 -9 -8 -8 -7 -6 -6 -6 -5 -5 -5 -------- Run | Jun Mat Mat Min Mat Sto Fac Fac Low Low Fac Ext Cet Damage Taken 9644 | . 233 1488 143 57 2040 209 43 307 90 1536 989 2509 Core 2076 | . 47 333 34 3 514 43 29 36 34 363 500 140 Absorbed by Shields . | . . . . . . . . . . . . . Reduced by Siege Mode 58 | . . . . . . . . . . . . 58 Redirected to Shielding 12 | . . . . . 3 9 . . . . . . Regen/Repaired (Parts) 72 | . . . . . 72 . . . . . . . Core Remaining (%) 62 | 100 81 . 8 . 6 93 . . 88 . . . Volleys Fired 99 | . 16 31 . . . . . . . 2 6 44 Largest 3 | . 2 2 . . . . . . . 1 3 3 Hottest 118 | . 40 118 . . . . . . . 65 99 103 Shots Fired 229 | . 32 46 . . . . . . . 2 19 130 Gun 188 | . 32 5 . . . . . . . 2 19 130 Cannon 14 | . . 14 . . . . . . . . . . Launcher . | . . . . . . . . . . . . . Special 27 | . . 27 . . . . . . . . . . Kinetic 181 | . 32 . . . . . . . . . 19 130 Thermal 46 | . . 46 . . . . . . . . . . Explosive . | . . . . . . . . . . . . . Electromagnetic 2 | . . . . . . . . . . 2 . . Robot Hit Streak 18 | . 6 18 . . . . . . . 1 5 12 Robot Miss Streak 6 | . 3 4 . . . . . . . 1 2 6 Penetration Max 1 | . . . . . . . . . . . . 1 Secondary Targets 10 | . 4 . . . . . . . . . 1 5 Max Gunslinging Chain 1 | . 1 . . . . . . . . . 1 1 Shots Hit Robots 335 | . 21 68 10 5 83 11 3 9 . 25 18 82 Core Hits 129 | . 7 10 2 3 38 4 1 4 . 13 10 37 Critical Kills 7 | . . 1 1 1 . . . . . . . 4 Critical Parts Destroyed 13 | . . 5 1 . 4 . . . . . . 3 Critical Strikes 29 | . . 7 2 1 6 . . 4 . . . 9 Destroy 9 | . . . . . . . . . . . . 9 Smash 14 | . . 7 2 1 4 . . . . . . . Sever 6 | . . . . . 2 . . 4 . . . . Melee Attacks 229 | . . 46 11 5 107 12 4 10 . 26 8 . Impact 78 | . . 46 11 2 19 . . . . . . . Slashing 142 | . . . . 3 88 12 4 10 . 20 5 . Piercing 9 | . . . . . . . . . . 6 3 . Sneak Attacks 19 | . . 2 . 2 7 1 . . . 3 4 . Combat Hostiles 2 | . . . . . . . . . . 2 . . Follow-up Attacks 31 | . . 9 . . 11 1 1 4 . 5 . . Damage Inflicted 9249 | . 227 1548 380 276 2636 276 105 288 . 701 678 2134 Guns 2782 | . 227 39 . . . . . . . 19 363 2134 Cannons 227 | . . 227 . . . . . . . . . . Explosions . | . . . . . . . . . . . . . Melee 6023 | . . 1065 380 276 2636 276 105 288 . 682 315 . Ramming . | . . . . . . . . . . . . . Kinetic 2724 | . 227 . . . . . . . . . 363 2134 Thermal 483 | . . 483 . . . . . . . . . . Explosive . | . . . . . . . . . . . . . Electromagnetic 19 | . . . . . . . . . . 19 . . Impact 2004 | . . 1065 380 144 415 . . . . . . . Slashing 3989 | . . . . 132 2221 276 105 288 . 662 305 . Piercing 30 | . . . . . . . . . . 20 10 . Highest Corruption 7 | . . 2 2 . . 1 . . . 6 7 7 Average Corruption 4 | . . 2 2 . . 1 . . . 4 6 7 Corruption Purged . | . . . . . . . . . . . . . Corruption Blocked . | . . . . . . . . . . . . . Effects 30 | . . 2 . . . 2 . . . 7 6 13 Message Errors 7 | . . 1 . . . 1 . . . . 3 2 Matter Fused 6 | . . 1 . . . . . . . 2 . 3 Heat Flow Errors 4 | . . . . . . 1 . . . 1 1 1 Energy Discharges 5 | . . . . . . . . . . 3 . 2 Data Loss (minor) 5 | . . . . . . . . . . 1 1 3 Misfires 2 | . . . . . . . . . . . 1 1 Weapon Failures 1 | . . . . . . . . . . . . 1 Overload Shots . | . . . . . . . . . . . . . Overflow Damage 700 | . . 292 44 . 247 . . . . 13 104 . Projectiles 9 | . . 9 . . . . . . . . . . Explosions . | . . . . . . . . . . . . . Melee 691 | . . 283 44 . 247 . . . . 13 104 . Knockbacks 1 | . . 1 . . . . . . . . . . Impact 1 | . . 1 . . . . . . . . . . Kinetic . | . . . . . . . . . . . . . Secondary . | . . . . . . . . . . . . . Self-Inflicted Damage . | . . . . . . . . . . . . . Shots . | . . . . . . . . . . . . . Rammed . | . . . . . . . . . . . . . Targets Rammed 1 | . . . . . . . . . . 1 . . Kicked 1 | . . . . . . . . . . 1 . . Crushed . | . . . . . . . . . . . . . Highest Temperature 484 | . 12 4 . . 16 208 . 2 . 84 174 484 Average Temperature 139 | . 8 2 . . 9 183 . 2 . 32 82 168 Received Heat Transfer 2181 | . 60 552 96 9 621 . . 132 . 336 147 228 Effects 6 | . . . . . . . . . . . . 6 Shutdowns 1 | . . . . . . . . . . . . 1 Energy Bleed 3 | . . . . . . . . . . . . 3 Interference 2 | . . . . . . . . . . . . 2 Siege Activations 1 | . . . . . . . . . . . . 1 Total Turns 30 | . . . . . . . . . . . . 30 Longest Duration 30 | . . . . . . . . . . . . 30 Robots Corrupted . | . . . . . . . . . . . . . Combat Hostiles . | . . . . . . . . . . . . . Parts Fried 8 | . . 4 1 . 3 . . . . . . . Impact Corruptions 20 | . . 12 2 . 6 . . . . . . . Robots Melted 1 | . . 1 . . . . . . . . . . Combat Hostiles 1 | . . 1 . . . . . . . . . . Parts Melted 4 | . . 4 . . . . . . . . . . Heat Transferred 1258 | . . 1258 . . . . . . . . . . Parts Sabotaged . | . . . . . . . . . . . . . Parts Stolen . | . . . . . . . . . . . . . Parts Stripped . | . . . . . . . . . . . . . Power Chain Reactions . | . . . . . . . . . . . . . Missiles Intercepted . | . . . . . . . . . . . . . Alert | -11 -10 -9 -9 -8 -8 -7 -6 -6 -6 -5 -5 -5 ------- Run | Jun Mat Mat Min Mat Sto Fac Fac Low Low Fac Ext Cet Peak Influence 937 | . 210 223 146 347 937 496 272 . . 198 203 423 Initial 426 | . . 88 86 56 146 426 242 . . 3 81 113 Average 271 | . 67 115 122 206 681 483 248 . . 128 114 247 Maximum Alert Level 3 | . 1 1 . 1 3 2 1 . . . 1 2 Low Security (%) 52 | 100 97 93 100 36 3 . . . . 100 77 43 Level 1 24 | . 2 6 . 63 13 . 100 . . . 22 55 Level 2 12 | . . . . . 19 100 . . . . . 1 Level 3 10 | . . . . . 63 . . . . . . . Level 4 . | . . . . . . . . . . . . . Level 5 . | . . . . . . . . . . . . . High Security . | . . . . . . . . . . . . . Max Security . | . . . . . . . . . . . . . Squads Dispatched 13 | . 2 2 . . 5 . 1 . . 3 . . Investigation 2 | . 1 . . . 1 . . . . . . . Extermination 1 | . . . . . . . 1 . . . . . Reinforcement 7 | . 1 2 . . 2 . . . . 2 . . Assault 3 | . . . . . 2 . . . . 1 . . Garrison . | . . . . . . . . . . . . . Intercept . | . . . . . . . . . . . . . Searches Triggered . | . . . . . . . . . . . . . Construction Impeded . | . . . . . . . . . . . . . Haulers Reinforced . | . . . . . . . . . . . . . Active Scanning Responses . | . . . . . . . . . . . . . Cargo Convoy Interrupts . | . . . . . . . . . . . . . Stealth | -11 -10 -9 -9 -8 -8 -7 -6 -6 -6 -5 -5 -5 --------- Run | Jun Mat Mat Min Mat Sto Fac Fac Low Low Fac Ext Cet Distress Signals 6 | . . 1 . 1 3 . . . . . . 1 Communications Jammed . | . . . . . . . . . . . . . Distress Signals . | . . . . . . . . . . . . . Times Spotted 170 | . 9 33 3 9 55 2 1 3 10 17 11 17 Peak Tracking Total 10 | . 5 10 3 5 10 2 1 3 10 6 6 6 Tactical Retreats 29 | . 2 8 . 3 8 1 . 1 . 3 2 1 Traps | -11 -10 -9 -9 -8 -8 -7 -6 -6 -6 -5 -5 -5 ------- Run | Jun Mat Mat Min Mat Sto Fac Fac Low Low Fac Ext Cet Traps Triggered 7 | . . . . 1 4 . . . . 2 . . Indirectly . | . . . . . . . . . . . . . Trap Hack Attempts . | . . . . . . . . . . . . . Triggered . | . . . . . . . . . . . . . Disarmed . | . . . . . . . . . . . . . Reprogrammed . | . . . . . . . . . . . . . Reused . | . . . . . . . . . . . . . Traps Extracted . | . . . . . . . . . . . . . Installed . | . . . . . . . . . . . . . Triggered . | . . . . . . . . . . . . . Machines | -11 -10 -9 -9 -8 -8 -7 -6 -6 -6 -5 -5 -5 ---------- Run | Jun Mat Mat Min Mat Sto Fac Fac Low Low Fac Ext Cet Machines Disabled 4 | . . . . . . . . . . . 1 3 Max in Single Turn 1 | . . . . . . . . . . . 1 1 Garrison Access 1 | . . . . . . . . . . 1 . . Machines Repaired . | . . . . . . . . . . . . . Machines Sabotaged . | . . . . . . . . . . . . . Overloaded Fab Kills . | . . . . . . . . . . . . . Hacking | -11 -10 -9 -9 -8 -8 -7 -6 -6 -6 -5 -5 -5 --------- Run | Jun Mat Mat Min Mat Sto Fac Fac Low Low Fac Ext Cet Machines Accessed 24 | . . 6 . 2 9 1 2 1 . 1 . 2 Terminals 19 | . . 5 . 2 9 . . . . 1 . 2 Fabricators . | . . . . . . . . . . . . . Repair Stations 2 | . . 1 . . . . 1 . . . . . Recycling Units . | . . . . . . . . . . . . . Scanalyzers 1 | . . . . . . 1 . . . . . . Garrison Access 1 | . . . . . . . 1 . . . . . Total Hacks 57 | . . 18 . 6 18 3 2 1 . 1 . 8 Successful 27 | . . 8 . 4 5 3 1 1 . 1 . 4 Failed 30 | . . 10 . 2 13 . 1 . . . . 4 Catastrophic 5 | . . 1 . . 4 . . . . . . . Database Lockouts . | . . . . . . . . . . . . . Manual 8 | . . . . 5 2 . . . . . . 1 Terminals 50 | . . 17 . 6 18 . . . . 1 . 8 Fabricators . | . . . . . . . . . . . . . Repair Stations 2 | . . 1 . . . . 1 . . . . . Recycling Units . | . . . . . . . . . . . . . Scanalyzers 3 | . . . . . . 3 . . . . . . Garrison Access 1 | . . . . . . . 1 . . . . . Terminal Hacks 20 | . . 8 . 1 5 . . 1 . 1 . 4 Record 4 | . . . . . . . . . . . . 4 Prototype ID Bank 1 | . . 1 . . . . . . . . . . Open Door 5 | . . . . . 3 . . 1 . 1 . . Emergency Access Points 1 | . . . . . 1 . . . . . . . Terminal Index 1 | . . . . . 1 . . . . . . . Recycling Unit Index 1 | . . 1 . . . . . . . . . . Alert Level 5 | . . 4 . 1 . . . . . . . . Dispatch Records 1 | . . 1 . . . . . . . . . . Registered Components 1 | . . 1 . . . . . . . . . . Fabricator Hacks . | . . . . . . . . . . . . . Repair Station Hacks 1 | . . . . . . . 1 . . . . . Scan Component 1 | . . . . . . . 1 . . . . . Recycling Unit Hacks . | . . . . . . . . . . . . . Scanalyzer 3 | . . . . . . 3 . . . . . . Insert Component 2 | . . . . . . 2 . . . . . . Analyze 1 | . . . . . . 1 . . . . . . Garrison Access Hacks . | . . . . . . . . . . . . . Unauthorized Hacks 3 | . . . . 3 . . . . . . . . Terminals 3 | . . . . 3 . . . . . . . . Track 1 | . . . . 1 . . . . . . . . Assimilate 1 | . . . . 1 . . . . . . . . Operators 1 | . . . . 1 . . . . . . . . Fabricators . | . . . . . . . . . . . . . Repair Stations . | . . . . . . . . . . . . . Recycling Units . | . . . . . . . . . . . . . Scanalyzers . | . . . . . . . . . . . . . Garrison Access . | . . . . . . . . . . . . . Data Cores Recovered . | . . . . . . . . . . . . . Used . | . . . . . . . . . . . . . Hacking Detections 21 | . . 6 . 2 9 1 1 . . 1 . 1 Full Trace Events 1 | . . . . . 1 . . . . . . . Feedback Events . | . . . . . . . . . . . . . Feedback Blocked . | . . . . . . . . . . . . . Robot Schematics Acquired . | . . . . . . . . . . . . . Robots Built . | . . . . . . . . . . . . . Authchips . | . . . . . . . . . . . . . Time . | . . . . . . . . . . . . . Total Robot Build Rating . | . . . . . . . . . . . . . Part Schematics Acquired 1 | . . . . . . 1 . . . . . . Parts Built . | . . . . . . . . . . . . . Authchips . | . . . . . . . . . . . . . Time . | . . . . . . . . . . . . . Total Part Build Rating . | . . . . . . . . . . . . . Parts Repaired . | . . . . . . . . . . . . . Time . | . . . . . . . . . . . . . Parts Recycled . | . . . . . . . . . . . . . Recycled Matter . | . . . . . . . . . . . . . Retrieved Matter . | . . . . . . . . . . . . . Retrieved Components . | . . . . . . . . . . . . . Parts Scanalyzed 1 | . . . . . . 1 . . . . . . Part Schematics Acquired 1 | . . . . . . 1 . . . . . . Parts Damaged . | . . . . . . . . . . . . . Bothacking | -11 -10 -9 -9 -8 -8 -7 -6 -6 -6 -5 -5 -5 ------------ Run | Jun Mat Mat Min Mat Sto Fac Fac Low Low Fac Ext Cet Used RIF Installer . | . . . . . . . . . . . . . Robots Hacked . | . . . . . . . . . . . . . Non-combat . | . . . . . . . . . . . . . Combat . | . . . . . . . . . . . . . Robot Hacks Applied . | . . . . . . . . . . . . . Relay Couplers Released 1 | . . . . . . . . . . 1 . . Machine Destruction 1 | . . . . . . . . . . 1 . . Fabnet Peak Effective % . | . . . . . . . . . . . . . Robots Rewired . | . . . . . . . . . . . . . Allies Hacked . | . . . . . . . . . . . . . Hacks Repelled . | . . . . . . . . . . . . . Allies | -11 -10 -9 -9 -8 -8 -7 -6 -6 -6 -5 -5 -5 -------- Run | Jun Mat Mat Min Mat Sto Fac Fac Low Low Fac Ext Cet Total Allies 2 | . . . . . 2 . . . . . . . Largest Group 2 | . . . . . 2 . . . . . . . Highest-Rated Group 62 | . . . . . 62 . . . . . . . Highest-Rated Ally 31 | . . . . . 31 . . . . . . . Total Orders . | . . . . . . . . . . . . . Ally Attacks 15 | . . . . . 15 . . . . . . . Total Damage 221 | . . . . . 221 . . . . . . . Kills 1 | . . . . . 1 . . . . . . . Allies Corrupted . | . . . . . . . . . . . . . Allies Melted . | . . . . . . . . . . . . . Intel | -11 -10 -9 -9 -8 -8 -7 -6 -6 -6 -5 -5 -5 ------- Run | Jun Mat Mat Min Mat Sto Fac Fac Low Low Fac Ext Cet Robot Analysis Total . | . . . . . . . . . . . . . Derelict Logs Recovered . | . . . . . . . . . . . . . Drone Launches 2 | . . . . . 2 . . . . . . . Drone Recoveries 1 | . . . . . 1 . . . . . . . Exploration | -11 -10 -9 -9 -8 -8 -7 -6 -6 -6 -5 -5 -5 ------------- Run | Jun Mat Mat Min Mat Sto Fac Fac Low Low Fac Ext Cet Turns Passed 4553 | 55 232 916 68 336 673 368 343 442 76 381 279 384 Spaces Moved 4229 | 36 149 462 58 657 606 338 365 627 113 422 273 123 Core 109 | 4 . 6 . . 2 . . . . . 97 . Treads 164 | . . . . . . . . . . . 41 123 Legs 989 | 32 149 448 5 2 55 176 86 1 . 35 . . Wheels 19 | . . . . . . . . . . . 19 . Hover 1523 | . . . . . . 2 279 626 113 387 116 . Flight 1425 | . . 8 53 655 549 160 . . . . . . Fastest Speed 30 | 50 120 47 47 39 30 50 76 66 66 42 38 160 Average Speed 74 | 112 120 123 53 42 49 86 86 66 66 63 70 169 Slowest Speed 250 | 120 120 250 120 120 190 140 120 105 66 120 250 240 Overloaded Moves 132 | . . . . . . . . . . 18 114 . Propulsion Burnouts . | . . . . . . . . . . . . . Robots Hopped 4 | . . . . . 4 . . . . . . . Cave-ins Triggered . | . . . . . . . . . . . . . Exploration Rate (%) 34 | 3 27 35 17 50 83 10 11 81 15 18 41 52 Regions Visited 12 Branch Regions 6 Pre-discovered Areas . | . . . . . . . . . . . . . Known Exits Taken 1 | . . . . 1 . . . . . . . . Unknown Exits Taken 11 | 1 1 1 1 . 1 1 1 1 1 1 1 . Scrap Searched 2 | . . . . . . . . 1 1 . . . Spaces Dug . | . . . . . . . . . . . . . Terrain Destroyed 8 | . . . . . . . . . . . 2 6 Melee . | . . . . . . . . . . . . . Projectile 8 | . . . . . . . . . . . 2 6 AOE . | . . . . . . . . . . . . . Terrain Rammed . | . . . . . . . . . . . . . Walls Destroyed . | . . . . . . . . . . . . . Machines Disabled . | . . . . . . . . . . . . . Actions | -11 -10 -9 -9 -8 -8 -7 -6 -6 -6 -5 -5 -5 --------- Run | Jun Mat Mat Min Mat Sto Fac Fac Low Low Fac Ext Cet Total 5107 | 50 174 681 78 712 816 394 389 647 113 511 341 201 Wait 149 | 1 . 78 6 1 20 8 4 5 . 15 7 4 Move 4210 | 35 148 461 57 656 598 337 364 626 112 421 272 123 Hop 3 | . . . . . 3 . . . . . . . Pick Up 176 | 8 8 31 2 20 31 14 6 5 . 20 19 12 Fast Attach 26 | . . . . 2 12 5 2 . . 2 3 . Attach 99 | 6 . 19 1 6 20 3 3 1 . 18 13 9 Detach 4 | . . . . . 1 1 . . . 2 . . Swap 42 | . . 7 . 5 13 1 2 . 1 3 5 5 Drop 104 | . 2 18 1 17 24 14 5 4 . 6 9 4 Fire 99 | . 16 31 . . . . . . . 2 6 44 Melee 194 | . . 36 11 5 94 11 3 6 . 21 7 . Ram . | . . . . . . . . . . . . . Kick 1 | . . . . . . . . . . 1 . . Crush . | . . . . . . . . . . . . . Escape Stasis . | . . . . . . . . . . . . . Rewire . | . . . . . . . . . . . . . Trap . | . . . . . . . . . . . . . Miscellaneous . | . . . . . . . . . . . . . Route ------- -11/Junkyard -10/Materials -9/Materials -9/Mines (discovered 2 exits: *Mat x2) -8/Materials -8/Storage -7/Factory -6/Factory -6/Lower Caves -6/Lower Caves -5/Factory -5/Extension (discovered 2 exits: [*Fac] / *Cet) -5/Cetus History --------- Turn | Location | Event 20 | -11/Junkyard | Discovered new exit (range 15) 56 | -11/Junkyard | Entered Materials 277 | -10/Materials | Discovered new exit (range 10) 288 | -10/Materials | Entered another Materials area 288 | -9/Materials | Evolved 2 slots: Propulsion x1, Utility x1 332 | -9/Materials | Build established: Mutant 477 | -9/Materials | Lost 3 parts (1p2w) 761 | -9/Materials | Build established: Scavenger-Mutant 787 | -9/Materials | Core integrity fell below 50% 830 | -9/Materials | Lost 3 parts (2n1u) 1107 | -9/Materials | Core integrity fell below 20% 1137 | -9/Materials | Lost 3 parts (2n1u) 1166 | -9/Materials | Discovered new exit (range 11) 1204 | -9/Materials | Entered Mines 1261 | -9/Mines | Discovered new exit (range 4) 1268 | -9/Mines | Discovered new exit (range 9) 1272 | -9/Mines | Entered Materials 1272 | -8/Materials | Evolved 2 slots: Propulsion x1, Utility x1 1327 | -8/Materials | Build established: Mutant 1604 | -8/Materials | Discovered new exit (range 8) 1607 | -8/Materials | Identified exit to Storage 1608 | -8/Materials | Entered Storage 1747 | -8/Storage | Lost 3 parts (1p1n1u) 1761 | -8/Storage | Destroyed 10 combat bots 1817 | -8/Storage | Core integrity fell below 50% 1856 | -8/Storage | Lost 5 parts (1p1n2u1w) 1928 | -8/Storage | Met a pair of Derelict thieves 1972 | -8/Storage | Found Prototype Protection 1973 | -8/Storage | Identified Lgt. Regenerative Plating 2088 | -8/Storage | Core integrity fell below 20% 2105 | -8/Storage | Lost 3 parts (2n1w) 2273 | -8/Storage | Discovered new exit (range 19) 2281 | -8/Storage | Entered Factory 2281 | -7/Factory | Evolved 2 slots: Propulsion x1, Utility x1 2492 | -7/Factory | Build established: Scavenger-Mutant 2641 | -7/Factory | Discovered new exit (range 8) 2649 | -7/Factory | Entered another Factory area 2649 | -6/Factory | Evolved 2 slots: Utility x1, Weapon x1 2964 | -6/Factory | Discovered new exit (range 12) 2992 | -6/Factory | Entered Lower Caves 3150 | -6/Lower Caves | Build established: Mutant 3433 | -6/Lower Caves | Discovered new exit (range 2) 3434 | -6/Lower Caves | Entered another Lower Caves area 3504 | -6/Lower Caves | Discovered new exit (range 10) 3510 | -6/Lower Caves | Ambushed by research squad 3510 | -6/Lower Caves | Entered Factory 3510 | -5/Factory | Evolved 2 slots: Utility x2 3667 | -5/Factory | Lost 4 parts (1p1n2w) 3739 | -5/Factory | Lost 5 parts (2n2u1w) 3840 | -5/Factory | Spotted B-75 Beast 3887 | -5/Factory | Discovered new exit (range 10) 3891 | -5/Factory | Entered Extension 3914 | -5/Extension | Lost 5 parts (4u1w) 3932 | -5/Extension | Spotted B-75 Beast 3933 | -5/Extension | Spotted B-75 Beast 3949 | -5/Extension | Core integrity fell below 50% 3959 | -5/Extension | Core integrity fell below 20% 3987 | -5/Extension | Lost 9 parts (1p5n1u2w) 3988 | -5/Extension | Discovered new exit (range 22) 3988 | -5/Extension | Discovered new exit (range 22) 4096 | -5/Extension | Disrupted transfer network 4170 | -5/Extension | Entered Cetus 4188 | -5/Cetus | Spotted Cetus Guard 4188 | -5/Cetus | Spotted Cetus Guard 4188 | -5/Cetus | Spotted Cetus Guard 4188 | -5/Cetus | Spotted Cetus Guard 4198 | -5/Cetus | Destroyed Cetus Guard 4213 | -5/Cetus | Destroyed Cetus Guard 4251 | -5/Cetus | Destroyed Cetus Guard 4270 | -5/Cetus | Destroyed Cetus Guard 4300 | -5/Cetus | Lost 9 parts (1p5n2u1w) 4377 | -5/Cetus | Destroyed 7 combat bots 4554 | -5/Cetus | Destroyed by H-66 Slayer with Gauss Rifle Last Messages --------------- Slug penetrates Machine. Penetrated by Slug. G-67 Veteran suffers critical hit (Destroy). Destroyed Flexi-carbon Leg. Slug penetrates G-67 Veteran. G-67 Veteran suffers critical hit (Destroy). G-67 Veteran destroyed. Penetrated by Slug. Slug penetrates G-50 Soldier. Penetrated by Slug. Med. Treads destroyed. Slug penetrates Reinforced Barrier. Slug penetrates G-50 Soldier. Slug penetrates Machine. Machine disabled. Slug penetrates G-50 Soldier. G-50 Soldier destroyed. Penetrated by Slug. Slug penetrates H-66 Slayer. Penetrated by Slug. Map ----- +----------------------------------------------------+ | ?????????????????????????????????????????????????? | | ??????? ???????????????????????????????????????? | | ??????? #??????????????????????????????????????? | | ??????? #??????????????????????????????????????? | | ??????# #??????????????????????????????????????? | | ??????# #??????????????????????????????????????? | | ??????# #??????????????????????????????????????? | | ??????# #??????????????????????????????????????? | | ??????# #??????????????????????????????????????? | | ??????# #??????????????????????????????????????? | | ??????# #??????????????????????????????????????? | | ??????# #??????????????????????????????????????? | | ??????# #??????????????????????????????????????? | | ??????# #??????????#################???????????? | | ??????# #??????????#""""" """ """""#???????????? | | ??????# #??????????# " """"""" " #???????????? | | ??????# #??????????#"""""""""""""""#???????????? | | ??????# #??????????#""""" """ """""#????""?????? | | ??????# #??????????#""""""" """""""#?? ""?????? | | ####### #??????????#""" " " """#? ""#????? | | # ## ; ###??#####?#"[""" """ "#" "#????? | | """"";; ;;#### ###%=* = ##???? | | % h + =%% %= % + ???? | | !! ! %%== [%* + ??? | | * %[==* %==! + ??? | | ######"##"#*###" "##"%[@ *[[ #????? | | ?????########?########"%*"" """""#T #????? | | ?????????????????????######+;###########?"""#????? | | ?????????????????????#" " ""#???????????????? | | ?????????????????????###" """#???????????????? | | ?????????????????????#" " ""#???????????????? | | ?????????????????????###" """#???????????????? | | ?????????????????????# "###???????????????? | | ?????????????????????# """"#???????????????? | | ?????????????????????#" T"""#???????????????? | | ?????????????????????#" """"#???????????????? | | ?????????????????????### "###???????????????? | | ?????????????????????# """"#???????????????? | | ?????????????????????#" " T"""#???????????????? | | ?????????????????????#" """"#???????????????? | | ?????????????????????#" " " #"###???????????????? | | ?????????????????????# #""?????????????????? | | ?????????????????????#""" """#"""????????????????? | | ?????????????????????#############???????????????? | | ?????????????????????????????????????????????????? | | ?????????????????????????????????????????????????? | | ?????????????????????????????????????????????????? | | ?????????????????????????????????????????????????? | | ?????????????????????????????????????????????????? | | ?????????????????????????????????????????????????? | +----------------------------------------------------+ Best States ------------- Heat Dissipation 59 Energy Generation 19 Energy Capacity 315 Matter Stores 400 Matter Capacity 400 Sight Range 22 Robot Scan Range 15 Terrain Scan Range 16 Terrain Scan Density 85 ECM Strength 1 Additional Mass Support 9 Armor Coverage 900 Core Shielding 20 Power Shielding 66 Melee Speed Boost 20 Evasion (%) 70 Melee Accuracy 18 Target Analysis 9 Core Analysis 6 Recoil Reduction 5 Defensive Hacking 10 Item Schematics ----------------- System Shield | -7/Factory | Scanalyzed Robot Schematics ------------------ None Fabricated ------------ Nothing Alien Tech Used ----------------- None Achievements -------------- Close Call Preemptive Strike Challenges ------------ None Game ------ Seed ZhirovActiveMantle Manual? 0 Play Time 01:48:04 Cumulative 35.5 hours Start 2023.12.02 @ 22:20:47 End 2023.12.03 @ 00:11:29 Sessions 1 Manual Loads 0 Difficulty Rogue Special Mode None Game No. 31 Rogue 31 Adventurer 0 Explorer 0 Win Type - Total 0 Types 0/0/0/0/0/0/0/0/0 Lore% 20 Gallery% 42 Achievement% 28 Wizard Run 0 Options --------- ASCII 0 Keyboard 0 Movement Numpad Keybinds 0 Fullscreen 1 Font 18/SmallcapsGlow Map View 76x50 Tactical HUD 0 Map Filters NONE Filters NONE Steam 1 RUN: cd66904a-287f-4695-af26-59dd4bf95f78